bitfinex-derivatives/quotes_ETHF0:USTF0_20251006
["timestamp","ask_amount","ask_price","bid_price","bid_amount"]
[1759718557437,1.53013655,4520.9,4520.8,3.6578]
[1759718557632,1.53013655,4520.9,4520.8,3.4328]
[1759718557836,1.53013655,4520.9,4520.8,0.225]
[1759718558738,1.14531,4520.6,4520.5,0.225]
[1759718559037,1.92814655,4520.6,4520.5,0.225]
[1759718559628,0.39803,4520.4,4520.3,3.21048745]
[1759718559834,1.14533,4520.4,4520.3,3.66048745]
[1759718560033,0.7473,4520.4,4520.3,5.40280632]
[1759718560234,0.7473,4520.4,4520.3,4.20938745]
[1759718560434,0.7473,4520.4,4520.3,3.98438745]
[1759718560740,0.7473,4520.4,4520.3,4.20938745]
[1759718562141,0.7473,4520.4,4520.3,3.88828745]
[1759718562341,0.7473,4520.4,4520.3,3.66048745]
[1759718563033,0.7473,4520.4,4520.3,3.43548745]
[1759718563238,0.7473,4520.4,4520.3,3.21048745]
[1759718564940,0.3293,4520.4,4520.3,3.98438745]
[1759718565635,0.5404,4520.4,4520.3,3.98438745]
[1759718565837,0.99393655,4520.9,4520.8,0.225]
[1759718566027,0.99393655,4520.9,4520.8,0.7739]
[1759718566028,1.22200987,4520.9,4520.8,0.7739]
[1759718566232,3.358e-05,4521.4,4521.0,0.49468]
[1759718566428,0.39797358,4521.4,4521.3,3.4328]
[1759718566638,0.93837358,4521.4,4521.3,3.6606]
[1759718567033,0.93837358,4521.4,4521.3,3.9817]
[1759718570943,0.93837358,4521.4,4521.3,4.2067]
[1759718571245,1.16177358,4521.4,4521.3,0.2225]
[1759718572543,1.16177358,4521.4,4521.3,0.4366]
[1759718575345,3.358e-05,4521.4,4521.3,0.4366]
[1759718576444,3.358e-05,4521.4,4521.3,1.63001887]
[1759718577348,3.358e-05,4521.4,4521.3,1.85401887]
[1759718577643,3.358e-05,4521.4,4521.3,0.6606]
[1759718580050,3.358e-05,4521.4,4521.3,0.4366]
[1759718580243,3.358e-05,4521.4,4521.3,0.6606]
[1759718583054,3.358e-05,4521.4,4521.3,0.4366]
[1759718583253,3.358e-05,4521.4,4521.3,0.6606]
[1759718584858,3.358e-05,4521.4,4521.3,5.6606]
[1759718585741,3.358e-05,4521.4,4521.3,46.4606]
[1759718590344,0.5428,4522.7,4522.6,0.4366]
[1759718590544,0.5428,4522.7,4522.6,4.1768]
[1759718591150,0.7662,4522.7,4522.6,4.1768]
[1759718591454,0.76871052,4522.7,4522.6,4.1768]
[1759718592449,1.55154707,4522.7,4522.6,3.2078]
[1759718592654,1.55154707,4522.7,4522.1,3.4303]
[1759718592655,0.7662,4522.2,4522.1,3.4303]
[1759718592954,0.7662,4522.2,4522.1,4.1768]
[1759718593149,0.52175,4522.5,4522.2,0.39787]
[1759718593353,1.28795,4522.5,4522.4,0.4366]
[1759718594054,0.54531052,4522.7,4522.6,0.4366]
[1759718594254,0.54531052,4522.7,4522.6,3.9528]
[1759718594955,1.55154707,4522.7,4522.6,3.4303]
[1759718597052,1.55154707,4522.7,4522.6,3.6444]
[1759718597258,0.76871052,4522.7,4522.6,3.9528]
[1759718597558,0.00251052,4522.7,4522.6,3.9528]
[1759718599651,0.00251052,4522.7,4522.6,8.9528]
[1759718601356,0.00251052,4522.7,4522.6,44.9768]
[1759718601659,0.00251052,4522.7,4522.6,45.75963655]
[1759718604458,0.00251052,4522.7,4522.6,44.7528]
[1759718604661,0.00251052,4522.7,4522.6,44.9768]
[1759718605058,0.00251052,4522.7,4522.6,4.1768]
[1759718605460,0.00251052,4522.7,4522.6,3.9528]
[1759718605661,0.00251052,4522.7,4522.6,4.1768]
[1759718607360,0.53881052,4522.7,4522.6,3.9528]
[1759718607558,0.74951052,4522.7,4522.6,3.2078]
[1759718607762,0.74951052,4522.7,4522.2,0.3276]
[1759718607763,0.747,4522.4,4522.3,0.2242]
[1759718607960,0.747,4522.4,4522.3,0.4482]
[1759718608152,0.747,4522.4,4522.3,0.983]
[1759718608553,0.747,4522.4,4522.3,0.6554]
[1759718608757,0.5363,4522.4,4522.3,0.983]
[1759718609664,0.22961052,4522.7,4522.6,0.4314]
[1759718609963,0.53881052,4522.7,4522.6,4.1908]
[1759718610364,0.53881052,4522.7,4522.6,3.9668]
[1759718610564,0.53881052,4522.7,4522.6,4.1908]
[1759718610758,0.00251052,4522.7,4522.6,4.1908]
[1759718611358,0.53881052,4522.7,4522.6,4.1908]
[1759718611559,0.74951052,4522.7,4522.6,4.1908]
[1759718611760,0.74951052,4522.7,4522.6,3.8632]
[1759718612065,0.74951052,4522.7,4522.6,4.1908]
[1759718612262,0.74951052,4522.7,4522.6,3.4318]
[1759718613462,0.74951052,4522.7,4522.6,3.2078]
[1759718613668,5.74951052,4522.7,4522.6,3.2078]
[1759718615060,0.4401,4522.4,4522.3,0.224]
[1759718615262,1.14926,4522.4,4522.3,0.224]
[1759718615463,6.14926,4522.4,4522.3,0.224]
[1759718615968,6.14926,4522.4,4522.3,0.4484]
[1759718616556,6.14926,4522.4,4522.3,0.224]
[1759718616764,1.14927,4522.2,4522.1,3.2078]
[1759718616970,1.14927,4522.2,4522.1,0.224]
[1759718617369,1.14927,4522.2,4522.1,0.4484]
[1759718618365,1.14932,4521.7,4521.6,3.4322]
[1759718618565,1.14932,4521.7,4521.6,3.6562]
[1759718619175,0.5345,4521.7,4521.6,4.2077]
[1759718619373,0.70921,4521.9,4521.7,0.72621]
[1759718619568,0.70921,4521.9,4521.8,0.9999]
[1759718619769,0.93241,4521.9,4521.8,0.9999]
[1759718620271,0.5345,4521.9,4521.8,0.9999]
[1759718620875,0.97095,4522.5,4522.4,0.2244]
[1759718621374,1.28225,4522.5,4522.4,0.2244]
[1759718621973,0.7514,4522.4,4522.3,3.2078]
[1759718622168,0.83797,4522.3,4522.2,0.224]
[1759718622371,1.14927,4522.3,4522.2,0.224]
[1759718623979,0.9324,4521.9,4521.8,3.9837]
[1759718624180,0.9324,4521.9,4521.8,4.2077]
[1759718625179,0.5345,4521.9,4521.8,4.2077]
[1759718626178,0.3113,4521.9,4521.8,4.2077]
[1759718626870,0.93238,4522.2,4522.1,0.7759]
[1759718627578,1.14928,4522.2,4522.1,0.7759]
[1759718628078,0.00251052,4522.7,4522.5,0.4558]
[1759718628276,0.39786,4522.4,4522.3,0.224]
[1759718628480,1.16506,4522.4,4522.3,0.4301]
[1759718628778,1.16506,4522.4,4522.3,0.6506]
[1759718628987,1.16506,4522.4,4522.3,0.9831]
[1759718630178,1.16506,4522.4,4522.3,0.224]
[1759718630483,0.7672,4522.4,4522.3,0.9831]
[1759718630677,0.7672,4522.4,4522.3,0.6506]
[1759718631182,0.7672,4522.4,4522.3,3.8584]
[1759718631679,1.16506,4522.4,4522.3,3.8584]
[1759718633384,1.16506,4522.4,4522.3,3.6379]
[1759718633584,1.16506,4522.4,4522.3,3.4318]
[1759718635376,1.16506,4522.4,4522.3,3.6379]
[1759718635875,0.52999,4522.0,4521.9,0.2061]
[1759718636083,0.7672,4521.9,4521.8,3.2078]
[1759718636276,0.7672,4521.9,4521.8,3.6379]
[1759718636584,0.7672,4521.9,4521.8,3.8584]
[1759718638086,0.7672,4521.9,4521.8,3.6379]
[1759718638785,0.7672,4521.9,4521.8,4.1909]
[1759718638980,0.39789,4522.1,4522.0,0.1155]
[1759718639179,0.74017,4522.3,4522.2,0.7591]
[1759718639385,0.95127,4522.3,4522.2,0.7591]
[1759718640181,0.74017,4522.3,4522.2,1.15697]
[1759718640381,0.74015,4522.5,4522.4,0.4266]
[1759718640581,0.95125,4522.5,4522.4,0.7591]
[1759718641282,1.16505,4522.5,4522.4,0.7591]
[1759718641480,1.64642197,4522.5,4522.4,0.7591]
[1759718641681,1.77852197,4522.5,4522.4,0.7591]
[1759718641881,0.48137197,4522.5,4522.4,0.9831]
[1759718642080,0.00251052,4522.7,4522.6,0.7591]
[1759718642482,0.82621177,4522.7,4522.6,0.7591]
[1759718642683,1.03731177,4522.7,4522.6,0.7591]
[1759718643480,1.03731177,4522.7,4522.6,0.9831]
[1759718644686,0.55591052,4522.7,4522.6,0.9831]
[1759718647282,0.00251052,4522.7,4522.6,0.9831]
[1759718648190,0.00251052,4522.7,4522.6,5.9831]
[1759718650396,0.55591052,4522.7,4522.6,0.9831]
[1759718650791,0.34481052,4522.7,4522.6,0.9831]
[1759718651295,0.00251052,4522.7,4522.6,1.38094]
[1759718655898,0.00251052,4522.7,4522.6,6.38094]
[1759718657501,0.022,4522.9,4522.8,1.15692]
[1759718657698,0.022,4522.9,4522.8,4.58872]
[1759718658502,0.02476549,4522.9,4522.8,4.58872]
[1759718659600,1.16067549,4522.9,4522.8,3.6344]
[1759718659807,1.16067549,4522.9,4522.8,3.8584]
[1759718660303,1.16067549,4522.9,4522.8,3.2078]
[1759718660505,2.09936422,4522.9,4522.8,3.2078]
[1759718661208,1.16067549,4522.9,4522.8,3.2078]
[1759718661410,0.76286549,4522.9,4522.8,3.4242]
[1759718662414,0.76286549,4522.9,4522.8,3.6351]
[1759718663514,0.76286549,4522.9,4522.8,3.2078]
[1759718663714,0.76286549,4522.9,4522.8,3.6351]
[1759718665418,0.76286549,4522.9,4522.8,3.4242]
[1759718665721,0.76286549,4522.9,4522.8,3.9616]
[1759718666015,0.76286549,4522.9,4522.8,3.6351]
[1759718666318,0.76286549,4522.9,4522.8,3.9616]
[1759718666717,0.55196549,4522.9,4522.8,3.9616]
[1759718669109,0.34086549,4522.9,4522.8,3.9616]
[1759718671022,0.02476549,4522.9,4522.8,4.74362365]
[1759718676224,0.02476549,4522.9,4522.8,45.54362365]
[1759718676625,0.02476549,4522.9,4522.8,4.74362365]
[1759718679922,0.02476549,4522.9,4522.8,3.9616]
[1759718679923,0.55986549,4522.9,4522.8,3.9616]
[1759718680124,1.56388914,4522.9,4522.8,3.4318]
[1759718680531,1.56388914,4522.9,4522.8,3.4187]
[1759718680827,1.56388914,4522.9,4522.8,3.6427]
[1759718681726,1.56388914,4522.9,4522.8,4.1821]
[1759718683932,0.55986549,4522.9,4522.8,4.1821]
[1759718684431,0.78186549,4522.9,4522.8,4.1821]
[1759718686727,0.55986549,4522.9,4522.8,4.1821]
[1759718686932,0.33506549,4522.9,4522.8,4.1821]
[1759718687332,0.55986549,4522.9,4522.8,4.1821]
[1759718688231,0.78186549,4522.9,4522.8,3.8514]
[1759718688533,1.56388914,4522.9,4522.8,3.6427]
[1759718689633,0.78186549,4522.9,4522.8,4.1815]
[1759718692036,0.55986549,4522.9,4522.8,4.1815]
[1759718694437,0.77426549,4522.9,4522.8,3.8516]
[1759718695029,0.33506549,4522.9,4522.8,4.1815]
[1759718695937,0.33506549,4522.9,4522.8,3.9575]
[1759718696135,0.33506549,4522.9,4522.8,4.1815]
[1759718697336,0.02476549,4522.9,4522.8,4.1815]
[1759718698942,0.59246549,4522.9,4522.8,4.1815]
[1759718699240,0.02476549,4522.9,4522.8,4.1815]
[1759718701746,0.342,4523.9,4522.8,9.96352365]
[1759718701936,0.342,4523.9,4523.7,0.7648]
[1759718701937,0.48243311,4523.8,4523.7,0.7648]
[1759718702146,0.48243311,4523.8,4523.7,0.9888]
[1759718702447,1.05013311,4523.8,4523.7,0.9888]
[1759718702846,1.05248528,4523.8,4523.7,0.99163862]
[1759718704043,1.26688528,4523.8,4523.7,0.00283862]
[1759718704252,1.26688528,4523.8,4523.7,0.22683862]
[1759718704645,1.26688528,4523.8,4523.7,0.00283862]
[1759718707853,1.26688528,4523.8,4523.7,0.22883862]
[1759718708057,1.26688528,4523.8,4523.7,0.76763862]
[1759718708257,1.05248528,4523.8,4523.7,0.76763862]
[1759718709063,1.26688528,4523.8,4523.7,0.76763862]
[1759718709565,1.26688528,4523.8,4523.7,0.43773862]
[1759718711557,1.26688528,4523.8,4523.7,0.76763862]
[1759718712561,1.05248528,4523.8,4523.7,0.76763862]
[1759718712761,0.48478528,4523.8,4523.7,0.76763862]
[1759718712966,1.26688528,4523.8,4523.7,0.76763862]
[1759718715964,1.26688528,4523.8,4523.7,0.43773862]
[1759718716862,1.26688528,4523.8,4523.7,0.00283862]
[1759718717760,1.26688528,4523.8,4523.7,0.78323862]
[1759718718557,0.82678528,4523.8,4523.7,0.78323862]
[1759718718958,1.03948528,4523.8,4523.7,0.78323862]
[1759718720270,0.55705217,4523.8,4523.7,0.78323862]
[1759718725173,0.77215217,4523.8,4523.7,0.78323862]
[1759718725372,0.77215217,4523.8,4523.7,0.45503862]
[1759718725574,0.77215217,4523.8,4523.7,0.78323862]
[1759718728875,0.55705217,4523.8,4523.7,0.78323862]
[1759718729272,0.00235217,4523.8,4523.7,0.78323862]
[1759718729463,0.31235217,4523.8,4523.7,0.78323862]
[1759718731475,0.00235217,4523.8,4523.7,0.78323862]
[1759718731671,0.31235217,4523.8,4523.7,0.78323862]
[1759718733572,0.00235217,4523.8,4523.7,0.78323862]
[1759718733976,0.00235217,4523.8,4523.7,0.78323862]
[1759718734572,0.1353,4525.0,4523.8,0.3309]
[1759718734779,0.4384,4524.7,4524.6,0.81266]
[1759718735074,0.91463924,4524.7,4524.6,1.03666]
[1759718735277,0.91463924,4524.7,4524.6,1.36756]
[1759718735581,0.9163534,4524.7,4524.6,1.36756]
[1759718736380,0.22391416,4524.7,4524.6,1.36756]
[1759718737078,0.00171416,4524.7,4524.6,1.36756]
[1759718738371,0.94466416,4524.7,4524.6,1.36756]
[1759718738575,0.54701416,4524.7,4524.6,1.36756]
[1759718738781,1.16086416,4524.7,4524.6,0.9699]
[1759718739376,0.76321416,4524.7,4524.6,0.9699]
[1759718739579,0.00171416,4524.7,4524.6,0.9699]
[1759718741374,0.22391416,4524.7,4524.6,0.7459]
[1759718741574,0.54701416,4524.7,4524.6,0.9699]
[1759718741984,0.22391416,4524.7,4524.6,0.9699]
[1759718742481,0.00171416,4524.7,4524.6,0.9699]
[1759718744480,0.00171416,4524.7,4524.6,2.162221]
[1759718745181,0.00171416,4524.7,4524.6,0.9699]
[1759718745380,0.00171416,4524.7,4524.6,41.7699]
[1759718748490,0.00171416,4524.7,4524.6,46.7699]
[1759718748887,1.93197408,4526.4,4526.3,0.2178]
[1759718748888,0.39751,4526.4,4526.3,0.2178]
[1759718749190,0.39751,4526.4,4526.3,0.7514]
[1759718749191,0.82991,4526.4,4526.3,0.7514]
[1759718749504,1.15251,4526.4,4526.3,0.7514]
[1759718749987,1.15516091,4526.4,4526.3,0.7514]
[1759718750587,0.75765091,4526.4,4526.3,0.7514]
[1759718750793,0.75765091,4526.4,4526.3,0.224]
[1759718751182,0.75765091,4526.4,4526.3,0.7514]
[1759718755196,0.99385,4526.1,4525.6,3.2078]
[1759718755385,0.83001,4525.3,4525.2,0.2178]
[1759718755691,1.15261,4525.3,4525.2,0.9752]
[1759718756495,1.15261,4525.3,4525.2,0.7522]
[1759718756696,1.15261,4525.3,4525.2,0.9752]
[1759718756896,1.15181,4525.3,4525.2,0.9752]
[1759718757493,1.15181,4525.3,4525.2,0.7522]
[1759718757691,1.15181,4525.3,4525.2,0.9752]
[1759718758390,0.94061,4525.3,4525.2,0.9752]
[1759718758594,1.15181,4525.3,4525.2,0.9752]
[1759718758789,1.15181,4525.3,4525.2,0.4408]
[1759718758989,0.755,4525.2,4525.1,3.2078]
[1759718759185,0.755,4525.2,4525.1,3.4308]
[1759718761093,0.4324,4524.7,4524.6,3.4256]
[1759718761299,0.4324,4524.7,4524.6,3.9582]
[1759718761300,1.15265,4524.7,4524.6,3.9582]
[1759718761697,1.15265,4524.7,4524.6,3.6486]
[1759718761893,1.15265,4524.7,4524.6,4.183]
[1759718762199,0.755,4524.7,4524.6,4.183]
[1759718765100,0.4324,4524.7,4524.6,4.183]
[1759718765302,0.2212,4524.7,4524.6,4.183]
[1759718766404,0.5438,4524.7,4524.6,4.183]
[1759718766702,0.755,4524.7,4524.6,4.183]
[1759718767593,0.755,4524.7,4524.6,3.96]
[1759718767896,0.3977,4524.2,4524.1,3.2078]
[1759718768095,0.3977,4524.2,4523.0,2.11138806]
[1759718768096,0.39771,4524.0,4523.9,1.18872698]
[1759718768296,0.994,4525.4,4524.4,0.2178]
[1759718768496,0.755,4524.5,4524.4,0.2178]
[1759718768694,1.15267,4524.5,4524.4,0.7522]
[1759718768896,0.1276,4526.0,4524.7,0.4426]
[1759718769094,0.39758,4525.6,4525.5,0.8808]
[1759718769295,0.72016,4525.8,4525.5,0.7672]
[1759718769505,0.5438,4525.8,4525.7,3.96]
[1759718769701,0.2212,4525.8,4525.7,4.183]
[1759718770501,0.22385091,4526.4,4526.3,0.7522]
[1759718771804,0.75765091,4526.4,4526.3,0.7522]
[1759718772605,0.00265091,4526.4,4526.3,0.7522]
[1759718780809,0.00265091,4526.4,4526.3,1.14971]
[1759718784012,0.00265091,4526.4,4526.3,6.14971]
[1759718784619,9.1e-07,4526.4,4526.3,6.14971]
[1759718784819,0.2124,4527.6,4527.5,0.8973]
[1759718785116,3.2078,4528.3,4527.5,0.8973]
[1759718785117,0.1314,4529.0,4527.8,0.767]
[1759718785307,0.3208,4528.5,4527.8,0.99]
[1759718785509,0.39733,4528.4,4527.8,0.99]
[1759718785713,0.02387749,4527.9,4527.8,0.99279187]
[1759718789720,0.02387749,4527.9,4527.8,1.93098595]
[1759718791216,0.02387749,4527.9,4527.8,1.77305389]
[1759718794820,0.33,4528.8,4527.8,1.77305389]
[1759718794821,0.2088,4528.7,4528.6,0.7744]
[1759718795018,0.7503,4528.7,4528.6,4.2052]
[1759718795215,0.4203,4528.7,4528.6,4.2052]
[1759718795417,0.2088,4528.7,4528.6,4.2052]
[1759718795728,0.54098707,4528.7,4528.6,4.2052]
[1759718796520,0.21098707,4528.7,4528.6,4.2052]
[1759718796919,0.54098707,4528.7,4528.6,4.2052]
[1759718797326,0.21098707,4528.7,4528.6,4.2052]
[1759718797529,0.00218707,4528.7,4528.6,4.2052]
[1759718797717,0.00218707,4528.7,4528.6,4.98546202]
[1759718798326,0.75248707,4528.7,4528.6,4.2052]
[1759718798829,0.00218707,4528.7,4528.6,4.98546202]
[1759718799034,3.3392,4530.5,4528.6,4.66166202]
[1759718799320,0.2088,4529.2,4529.1,3.6584]
[1759718799524,0.7503,4529.2,4529.1,3.8814]
[1759718799923,0.4203,4529.2,4529.1,3.9822]
[1759718800120,0.42248583,4529.2,4529.1,4.2052]
[1759718800320,0.21098583,4529.2,4529.1,4.2052]
[1759718800919,0.33,4530.4,4530.3,0.2254]
[1759718801126,0.2088,4530.4,4530.3,0.9974]
[1759718801625,0.5388,4530.4,4530.3,0.9974]
[1759718802030,0.21165858,4530.4,4530.3,0.9974]
[1759718803533,0.00285858,4530.4,4530.3,1.39456]
[1759718816039,1.14600858,4530.4,4530.3,0.9974]
[1759718816837,1.14600858,4530.4,4530.3,0.7744]
[1759718817134,1.14600858,4530.4,4530.3,0.9974]
[1759718817335,1.14600858,4530.4,4530.3,0.7744]
[1759718817535,1.14600858,4530.4,4530.3,0.9974]
[1759718818339,0.39718,4530.1,4530.0,0.3151]
[1759718818539,1.14318,4530.1,4530.0,0.9787]
[1759718818942,0.746,4530.1,4530.0,0.9787]
[1759718820043,1.27609,4530.0,4529.9,3.4355]
[1759718820239,1.27609,4530.0,4529.9,3.6585]
[1759718820441,0.00285858,4530.4,4530.3,0.7557]
[1759718820641,0.21715858,4530.4,4530.3,0.9787]
[1759718821040,0.53835858,4530.4,4530.3,0.9787]
[1759718821749,0.74885858,4530.4,4530.3,0.9787]
[1759718822736,0.21715858,4530.4,4530.3,0.9787]
[1759718823248,0.00285858,4530.4,4530.3,1.37586]
[1759718823846,0.00285858,4530.4,4530.3,42.17586]
[1759718824047,0.00285858,4530.4,4530.3,47.17586]
[1759718824443,0.746,4531.7,4531.6,0.7557]
[1759718824651,1.21377472,4531.7,4531.6,0.9787]
[1759718824851,0.746,4531.7,4531.6,0.9787]
[1759718825361,0.74802134,4531.7,4531.6,0.9804087]
[1759718826858,0.00202134,4531.7,4531.6,4.1882087]
[1759718828358,0.74802134,4531.7,4531.6,3.9652087]
[1759718828553,0.74802134,4531.7,4531.6,0.4423087]
[1759718828753,0.74802134,4531.7,4531.6,0.2247087]
[1759718829752,0.74802134,4531.7,4531.6,0.9804087]
[1759718836365,0.00202134,4531.7,4531.6,1.76067072]
[1759718839061,0.00202134,4531.7,4531.6,42.56067072]
[1759718843163,0.00202134,4531.7,4531.6,41.7804087]
[1759718844364,0.00202134,4531.7,4531.6,42.96641901]
[1759718848065,0.00202134,4531.7,4531.6,41.7804087]
[1759718849769,0.00202134,4531.7,4531.6,42.56067072]
[1759718852472,0.00202134,4531.7,4531.6,43.74668103]
[1759718852874,0.00202134,4531.7,4531.6,42.56067072]
[1759718853070,0.022,4532.9,4532.8,0.779]
[1759718853369,0.7568,4532.9,4532.8,4.2098]
[1759718853968,0.7593297,4532.9,4532.8,4.2098]
[1759718854570,0.0245297,4532.9,4532.8,4.2098]
[1759718860273,0.0245297,4532.9,4532.8,45.0098]
[1759718861365,0.3369297,4532.9,4532.8,45.0098]
[1759718861972,0.0245297,4532.9,4532.8,45.0098]
[1759718866571,0.0245297,4532.9,4532.8,46.19567469]
[1759718866873,9.7e-06,4532.9,4532.8,45.0098]
[1759718868876,1.1525,4534.4,4534.3,0.5518]
[1759718869076,1.1525,4534.4,4534.3,0.7748]
[1759718869278,0.7557,4534.4,4534.3,0.9884]
[1759718869873,0.75831392,4534.4,4534.3,0.9884]
[1759718870278,0.75831392,4534.4,4534.3,0.223]
[1759718870876,0.75831392,4534.4,4534.3,0.4345]
[1759718871077,5.75831392,4534.4,4534.3,0.223]
[1759718872084,5.75831392,4534.4,4534.3,0.4345]
[1759718872280,5.75831392,4534.4,4534.3,0.223]
[1759718875181,5.75831392,4534.4,4534.3,0.4345]
[1759718875483,5.75831392,4534.4,4534.3,0.7748]
[1759718876085,5.75831392,4534.4,4534.3,0.4345]
[1759718876279,5.75831392,4534.4,4534.3,0.223]
[1759718876788,0.8862,4534.0,4533.2,3.2078]
[1759718876987,1.1526,4533.3,4533.2,3.7596]
[1759718877282,0.7557,4533.3,4533.2,3.6423]
[1759718877477,0.39686,4533.8,4533.2,3.8559]
[1759718877683,0.5289,4533.6,4533.5,0.7654]
[1759718877990,1.15257,4533.6,4533.5,0.9884]
[1759718878984,1.15257,4533.6,4533.5,0.223]
[1759718879894,1.1526,4533.3,4533.2,3.2078]
[1759718880089,0.7557,4532.7,4532.6,3.2078]
[1759718880288,0.7557,4532.7,4532.6,3.4308]
[1759718881088,0.7557,4532.7,4532.6,4.1962]
[1759718881390,3.2078,4533.6,4532.6,4.1962]
[1759718881391,0.7557,4533.7,4533.6,0.82197]
[1759718881586,0.7557,4533.7,4533.6,3.6329]
[1759718881786,0.7557,4533.7,4533.6,3.9732]
[1759718883299,0.7557,4533.7,4533.6,3.2078]
[1759718883482,1.15257,4533.6,4533.5,0.4345]
[1759718883885,0.7557,4533.6,4533.5,0.9884]
[1759718884890,0.7557,4533.6,4533.5,1.1199]
[1759718885092,0.4466,4533.6,4533.5,1.1199]
[1759718885292,0.7557,4534.3,4534.2,0.4251]
[1759718885494,0.7557,4534.3,4534.2,0.9884]
[1759718886094,0.00261392,4534.4,4534.3,0.3403]
[1759718886292,0.22241392,4534.4,4534.3,3.9732]
[1759718886492,0.61921392,4534.4,4534.3,3.9732]
[1759718886799,0.53151392,4534.4,4534.3,3.9732]
[1759718886996,0.00261392,4534.4,4534.3,3.9732]
[1759718887199,0.39672,4535.4,4534.5,0.1315]
[1759718887503,0.39672,4535.4,4535.3,3.9732]
[1759718887504,0.7557,4535.4,4535.3,3.9732]
[1759718887798,0.7557,4535.4,4535.3,4.1962]
[1759718888201,0.75726506,4535.4,4535.3,4.19839471]
[1759718888698,0.22136506,4535.4,4535.3,4.19839471]
[1759718889295,0.00156506,4535.4,4535.3,4.19839471]
[1759718890007,0.00156506,4535.4,4535.3,5.38233861]
[1759718890200,0.00156506,4535.4,4535.3,4.19839471]
[1759718890401,0.00156506,4535.4,4535.3,5.38233861]
[1759718891098,0.75726506,4535.4,4535.3,4.19839471]
[1759718891503,0.75726506,4535.4,4535.3,4.19739471]
[1759718892502,3.2078,4537.5,4536.9,0.3403]
[1759718892693,0.7777,4537.9,4537.8,0.4251]
[1759718892900,0.7777,4537.9,4537.8,0.2115]
[1759718893098,0.8862,4537.5,4537.4,0.222]
[1759718893305,0.3311,4537.9,4537.3,1.38395]
[1759718893605,0.3311,4537.9,4537.5,1.16193]
[1759718893606,0.5289,4537.6,4537.5,1.16193]
[1759718893805,0.02429984,4537.9,4537.8,0.7654]
[1759718893994,1.18793441,4539.8,4537.8,0.7654]
[1759718893995,1.18793441,4540.6,4539.0,3.2078]
[1759718894194,0.1305,4542.0,4540.5,0.1315]
[1759718894195,0.3091,4541.4,4540.5,0.1315]
[1759718894403,0.1305,4542.0,4540.6,0.5623]
[1759718894404,0.1305,4541.5,4540.6,0.5623]
[1759718894599,0.3091,4541.4,4541.1,3.2078]
[1759718894795,0.3091,4541.9,4541.2,0.3403]
[1759718895007,0.00264156,4541.9,4541.8,3.94426]
[1759718895200,0.00264156,4541.9,4541.8,4.16626]
[1759718896305,0.00264156,4541.9,4541.8,3.7701]
[1759718897104,0.31174156,4541.9,4541.8,3.2078]
[1759718897303,0.00264156,4541.9,4541.8,3.7701]
[1759718899303,1.56e-06,4541.9,4541.8,3.7701]
[1759718899804,0.022,4542.9,4541.8,8.7701]
[1759718900003,0.1305,4545.0,4543.5,0.85221]
[1759718900004,0.3197,4544.7,4543.5,0.85221]
[1759718900207,0.3197,4544.7,4543.5,4.28201]
[1759718900705,0.7156,4544.7,4543.5,4.28201]
[1759718900900,0.02163684,4543.6,4543.5,4.28201]
[1759718901809,0.34133684,4543.6,4543.5,3.4298]
[1759718902304,0.02163684,4543.6,4543.5,3.886]
[1759718902504,0.02163684,4543.6,4543.5,3.7607]
[1759718902809,0.34133684,4543.6,4543.5,3.4298]
[1759718903006,5.34133684,4543.6,4543.5,3.2078]
[1759718905110,0.34133684,4543.6,4543.5,3.5387]
[1759718906811,0.02163684,4543.6,4543.5,3.5387]
[1759718907009,0.02163684,4543.6,4543.5,4.28201]
[1759718908506,5.02163684,4543.6,4543.0,3.2078]
[1759718908715,0.1353,4543.5,4543.4,3.2078]
[1759718909014,0.02163684,4543.6,4543.5,0.85221]
[1759718909315,0.3197,4545.7,4545.0,0.39587]
[1759718909516,0.3197,4545.7,4545.6,0.3309]
[1759718909711,0.39582,4545.8,4545.5,3.3648]
[1759718909911,0.71553,4545.6,4545.5,3.3648]
[1759718910419,0.71730872,4545.6,4545.5,3.36713783]
[1759718910924,5.71730872,4545.6,4545.5,0.00233783]
[1759718911313,0.71730872,4545.6,4545.5,0.00233783]
[1759718911820,0.00177872,4545.6,4545.5,0.45853783]
[1759718912021,4.09090208,4547.6,4545.5,0.45853783]
[1759718912022,3.2078,4549.9,4546.1,3.2078]
[1759718912219,9.8843,4550.9,4546.1,3.2078]
[1759718912220,0.1353,4550.0,4549.8,3.2078]
[1759718912425,0.1353,4550.5,4550.1,0.39543]
[1759718912722,0.1353,4550.0,4549.6,0.222]
[1759718912912,0.13692917,4550.0,4549.9,3.2078]
[1759718914021,0.45242917,4550.0,4549.9,3.2078]
[1759718914722,0.00162917,4550.0,4549.9,3.60325]
[1759718915120,0.1353,4551.0,4549.9,5.91183739]
[1759718915319,0.4508,4551.0,4550.9,3.2078]
[1759718916022,0.5287,4550.5,4550.4,3.2078]
[1759718916328,0.84660034,4550.5,4550.4,3.2078]
[1759718916520,5.84660034,4550.5,4550.4,3.2078]
[1759718917627,0.3155,4548.9,4548.7,3.2078]
[1759718917820,0.1333,4548.5,4548.2,3.2078]
[1759718918021,0.1333,4548.5,4548.2,3.4298]
[1759718918628,0.1333,4548.5,4548.3,5.0]
[1759718918822,0.4488,4549.0,4548.7,0.39555]
[1759718919026,3.6566,4549.5,4549.1,0.39552]
[1759718919226,0.3155,4550.1,4549.3,3.2078]
[1759718919430,0.3155,4550.1,4549.7,0.39547]
[1759718919619,0.3155,4549.9,4549.8,0.21023425]
[1759718919817,0.3155,4549.9,4549.3,3.2078]
[1759718920023,0.3155,4549.4,4549.3,0.222]
[1759718920526,0.3155,4548.9,4548.8,0.222]
[1759718920822,0.3155,4548.3,4548.2,0.00201221]
[1759718921222,0.4488,4548.5,4548.2,0.39761221]
[1759718921527,0.4488,4549.0,4548.4,3.09961739]
[1759718921823,0.1333,4548.5,4548.2,0.00201221]
[1759718922529,0.71109,4548.3,4548.2,0.00201221]